{"text_format":"1","workbook":"xlsx","n_sheets":4,"sheets":["Innskriving","Úrslit","Dómaraseðil","Lið-spælarar-dómarar-deildir"],"not_rendered":{"charts":0,"images":0,"macros":1,"external_links":0,"defined_names":9,"comments":0,"pivot_tables":0},"unopened":[],"bounds":{"document_bytes":16777216,"sheet_cells":100000,"rows_first":2000,"rows_last":500,"rows_between":2000,"halvings":0,"cell_chars":16384,"cell_head_chars":4096},"cells_cut":0,"cells_raw":0,"read":"whole","date_system":"1900"}

{"sheet":"Innskriving","index":0,"n_rows":249,"n_cols":20,"rows_kept":249,"cut":false,"hidden":false,"merged":[]}
[null,"Innskriva í gulu feltunum, byrja við at velja liðini frá innbygda listanum, hareftir spælarar frá  lista."]
[null,"Um spælari ikki er uppskrivaður, klikk á knappin \"Stovna spælara\" og skriva inn niðast í gula raðnum. "]
[null,"Seriuinnskriving til 1. Deild"]
[null,"Heimalið:",null,null,null,"Dato:",null,"DD-MM-ÁÁÁÁ"]
[null,"Vitjandi lið:",null,null,null,"Deild:",1]
[]
[null,"Spælarar heimalið: 1 og 2",null,null,null,"Spælarar útilið: 3 og 4"]
[]
[]
[]
[null,"Stovna spælara",null,null,null,null,null,null,null,"Stovna dómara"]
[]
[]
[]
[null,null,null,null,null,null,null,null,null,"Dómarar dystur 1:",null,null,null,null,null,null,null,null,null,"Dómarar dystur 2:"]
[null,"Dystur 1:",1,null,null,"Dystur 1:",3,null,1,null,null,"Dystur 2:",2,null,null,"Dystur 2:",4,null,1]
[null,"Navn:",{"$f":"B9","v":0},null,null,"Navn:",{"$f":"F9","v":0},null,2,null,null,"Navn:",{"$f":"B10","v":0},null,null,"Navn:",{"$f":"F10","v":0},null,2]
[null,null,"seria","íalt",null,null,"seria","íalt",null,null,null,null,"seria","íalt",null,null,"seria","íalt"]
[null,1,null,{"$f":"IF(C19=\"\",\"\",C19)","v":""},null,1,null,{"$f":"IF(G19=\"\",\"\",G19)","v":""},null,null,null,1,null,{"$f":"IF(M19=\"\",\"\",M19)","v":""},null,1,null,{"$f":"IF(Q19=\"\",\"\",Q19)","v":""}]
[null,2,null,{"$f":"IF(C20=\"\",\"\",C20+D19)","v":""},null,2,null,{"$f":"IF(G20=\"\",\"\",G20+H19)","v":""},null,null,null,2,null,{"$f":"IF(M20=\"\",\"\",M20+N19)","v":""},null,2,null,{"$f":"IF(Q20=\"\",\"\",Q20+R19)","v":""}]
[null,3,null,{"$f":"IF(C21=\"\",\"\",C21+D20)","v":""},null,3,null,{"$f":"IF(G21=\"\",\"\",G21+H20)","v":""},null,null,null,3,null,{"$f":"IF(M21=\"\",\"\",M21+N20)","v":""},null,3,null,""]
[null,4,null,"",null,4,null,"",null,null,null,4,null,"",null,4,null,""]
[null,5,null,"",null,5,null,"",null,null,null,5,null,"",null,5,null,""]
[null,6,null,"",null,6,null,"",null,null,null,6,null,"",null,6,null,""]
[null,7,null,"",null,7,null,"",null,null,null,7,null,"",null,7,null,""]
[null,8,null,"",null,8,null,"",null,null,null,8,null,"",null,8,null,""]
[null,9,null,"",null,9,null,"",null,null,null,9,null,"",null,9,null,""]
[null,10,null,"",null,10,null,"",null,null,null,10,null,"",null,10,null,""]
[null,11,null,{"$f":"IF(C29=\"\",\"\",C29+D28)","v":""},null,11,null,{"$f":"IF(G29=\"\",\"\",G29+H28)","v":""},null,null,null,11,null,{"$f":"IF(M29=\"\",\"\",M29+N28)","v":""},null,11,null,""]
[null,12,null,"",null,12,null,"",null,null,null,12,null,"",null,12,null,""]
[null,13,null,"",null,13,null,"",null,null,null,13,null,"",null,13,null,""]
[null,14,null,"",null,14,null,"",null,null,null,14,null,"",null,14,null,""]
[null,15,null,"",null,15,null,"",null,null,null,15,null,"",null,15,null,""]
[null,16,null,"",null,16,null,"",null,null,null,16,null,"",null,16,null,""]
[null,17,null,"",null,17,null,"",null,null,null,17,null,"",null,17,null,""]
[null,18,null,"",null,18,null,"",null,null,null,18,null,"",null,18,null,""]
[null,19,null,"",null,19,null,"",null,null,null,19,null,"",null,19,null,""]
[null,20,null,"",null,20,null,"",null,null,null,20,null,"",null,20,null,""]
[null,21,null,{"$f":"IF(C39=\"\",\"\",C39+D38)","v":""},null,21,null,{"$f":"IF(G39=\"\",\"\",G39+H38)","v":""},null,null,null,21,null,{"$f":"IF(M39=\"\",\"\",M39+N38)","v":""},null,21,null,""]
[null,22,null,"",null,22,null,"",null,null,null,22,null,"",null,22,null,""]
[null,23,null,"",null,23,null,"",null,null,null,23,null,"",null,23,null,""]
[null,24,null,"",null,24,null,"",null,null,null,24,null,"",null,24,null,""]
[null,25,null,"",null,25,null,"",null,null,null,25,null,"",null,25,null,""]
[null,26,null,"",null,26,null,"",null,null,null,26,null,"",null,26,null,""]
[null,27,null,"",null,27,null,"",null,null,null,27,null,"",null,27,null,""]
[null,28,null,"",null,28,null,"",null,null,null,28,null,"",null,28,null,""]
[null,29,null,"",null,29,null,"",null,null,null,29,null,"",null,29,null,""]
[null,30,null,"",null,30,null,"",null,null,null,30,null,"",null,30,null,""]
[null,31,null,"",null,31,null,"",null,null,null,31,null,"",null,31,null,""]
[null,32,null,"",null,32,null,"",null,null,null,32,null,"",null,32,null,""]
[null,33,null,"",null,33,null,"",null,null,null,33,null,"",null,33,null,""]
[null,34,null,"",null,34,null,"",null,null,null,34,null,"",null,34,null,""]
[null,35,null,"",null,35,null,"",null,null,null,35,null,"",null,35,null,""]
[null,36,null,"",null,36,null,"",null,null,null,36,null,"",null,36,null,""]
[null,37,null,"",null,37,null,"",null,null,null,37,null,"",null,37,null,""]
[null,38,null,"",null,38,null,"",null,null,null,38,null,"",null,38,null,""]
[null,39,null,"",null,39,null,"",null,null,null,39,null,"",null,39,null,""]
[null,40,null,"",null,40,null,"",null,null,null,40,null,"",null,40,null,""]
[null,"Eygu/Inngangir",{"$f":"SUM(C19:C58)","v":0},{"$f":"COUNT(D19:D58)","v":0},null,"Eygu/Inngangir",{"$f":"SUM(G19:G58)","v":0},{"$f":"COUNT(H19:H58)","v":0},null,null,null,"Eygu/Inngangir",{"$f":"SUM(M19:M58)","v":0},{"$f":"COUNT(N19:N58)","v":0},null,"Eygu/Inngangir",{"$f":"SUM(Q19:Q58)","v":0},{"$f":"COUNT(R19:R58)","v":0}]
[null,"Stig/Miðaltal",{"$f":"IF(D60>H60,2,IF(D60=H60,1,IF(D60<H60,0)))","v":1},{"$f":"IF(SUM(C19:C58)=0,\"\",SUM(C19:C58)/COUNT(C19:C58))","v":""},null,"Stig/Miðaltal",{"$f":"IF(H60>D60,2,IF(H60=D60,1,IF(H60<D60,0)))","v":1},{"$f":"IF(SUM(G19:G58)=0,\"\",SUM(G19:G58)/COUNT(G19:G58))","v":""},null,null,null,"Stig/Miðaltal",{"$f":"IF(N60>R60,2,IF(N60=R60,1,IF(N60<R60,0)))","v":1},{"$f":"IF(SUM(M19:M58)=0,\"\",SUM(M19:M58)/COUNT(M19:M58))","v":""},null,"Stig/Miðaltal",{"$f":"IF(R60>N60,2,IF(R60=N60,1,IF(R60<N60,0)))","v":1},{"$f":"IF(SUM(Q19:Q58)=0,\"\",SUM(Q19:Q58)/COUNT(Q19:Q58))","v":""}]
[null,"Størsta seria:",null,{"$f":"MAX(C19:C58)","v":0},null,"Størsta seria:",null,{"$f":"MAX(G19:G58)","v":0},null,null,null,"Størsta seria:",null,{"$f":"MAX(M19:M58)","v":0},null,"Størsta seria:",null,{"$f":"MAX(Q19:Q58)","v":0}]
[]
[]
[]
[null,null,null,null,null,null,null,null,null,"Dómarar dystur 3:",null,null,null,null,null,null,null,null,null,"Dómarar dystur 4:"]
[null,"Dystur 3:",1,null,null,"Dystur 3:",4,null,1,null,null,"Dystur 4:",2,null,null,"Dystur 4:",3,null,1]
[null,"Navn:",{"$f":"B9","v":0},null,null,"Navn:",{"$f":"F10","v":0},null,2,null,null,"Navn:",{"$f":"B10","v":0},null,null,"Navn:",{"$f":"F9","v":0},null,2]
[null,1,null,{"$f":"IF(C68=\"\",\"\",C68)","v":""},null,1,null,{"$f":"IF(G68=\"\",\"\",G68)","v":""},null,null,null,1,null,{"$f":"IF(M68=\"\",\"\",M68)","v":""},null,1,null,{"$f":"IF(Q68=\"\",\"\",Q68)","v":""}]
[null,2,null,{"$f":"IF(C69=\"\",\"\",C69+D68)","v":""},null,2,null,{"$f":"IF(G69=\"\",\"\",G69+H68)","v":""},null,null,null,2,null,{"$f":"IF(M69=\"\",\"\",M69+N68)","v":""},null,2,null,{"$f":"IF(Q69=\"\",\"\",Q69+R68)","v":""}]
[null,3,null,{"$f":"IF(C70=\"\",\"\",C70+D69)","v":""},null,3,null,{"$f":"IF(G70=\"\",\"\",G70+H69)","v":""},null,null,null,3,null,{"$f":"IF(M70=\"\",\"\",M70+N69)","v":""},null,3,null,""]
[null,4,null,"",null,4,null,"",null,null,null,4,null,"",null,4,null,""]
[null,5,null,"",null,5,null,"",null,null,null,5,null,"",null,5,null,""]
[null,6,null,"",null,6,null,"",null,null,null,6,null,"",null,6,null,""]
[null,7,null,"",null,7,null,"",null,null,null,7,null,"",null,7,null,""]
[null,8,null,"",null,8,null,"",null,null,null,8,null,"",null,8,null,""]
[null,9,null,"",null,9,null,"",null,null,null,9,null,"",null,9,null,""]
[null,10,null,"",null,10,null,"",null,null,null,10,null,"",null,10,null,""]
[null,11,null,"",null,11,null,{"$f":"IF(G78=\"\",\"\",G78+H77)","v":""},null,null,null,11,null,{"$f":"IF(M78=\"\",\"\",M78+N77)","v":""},null,11,null,""]
[null,12,null,"",null,12,null,"",null,null,null,12,null,"",null,12,null,""]
[null,13,null,"",null,13,null,"",null,null,null,13,null,"",null,13,null,""]
[null,14,null,"",null,14,null,"",null,null,null,14,null,"",null,14,null,""]
[null,15,null,"",null,15,null,"",null,null,null,15,null,"",null,15,null,""]
[null,16,null,"",null,16,null,"",null,null,null,16,null,"",null,16,null,""]
[null,17,null,"",null,17,null,"",null,null,null,17,null,"",null,17,null,""]
[null,18,null,"",null,18,null,"",null,null,null,18,null,"",null,18,null,""]
[null,19,null,"",null,19,null,"",null,null,null,19,null,"",null,19,null,""]
[null,20,null,"",null,20,null,"",null,null,null,20,null,"",null,20,null,""]
[null,21,null,"",null,21,null,{"$f":"IF(G88=\"\",\"\",G88+H87)","v":""},null,null,null,21,null,{"$f":"IF(M88=\"\",\"\",M88+N87)","v":""},null,21,null,""]
[null,22,null,"",null,22,null,"",null,null,null,22,null,"",null,22,null,""]
[null,23,null,"",null,23,null,"",null,null,null,23,null,"",null,23,null,""]
[null,24,null,"",null,24,null,"",null,null,null,24,null,"",null,24,null,""]
[null,25,null,"",null,25,null,"",null,null,null,25,null,"",null,25,null,""]
[null,26,null,"",null,26,null,"",null,null,null,26,null,{"$f":"IF(M93=\"\",\"\",M93+N92)","v":""},null,26,null,""]
[null,27,null,"",null,27,null,"",null,null,null,27,null,"",null,27,null,""]
[null,28,null,"",null,28,null,"",null,null,null,28,null,{"$f":"IF(M95=\"\",\"\",M95+N94)","v":""},null,28,null,""]
[null,29,null,"",null,29,null,"",null,null,null,29,null,"",null,29,null,""]
[null,30,null,"",null,30,null,"",null,null,null,30,null,"",null,30,null,""]
[null,31,null,"",null,31,null,"",null,null,null,31,null,"",null,31,null,""]
[null,32,null,"",null,32,null,"",null,null,null,32,null,"",null,32,null,""]
[null,33,null,"",null,33,null,"",null,null,null,33,null,"",null,33,null,""]
[null,34,null,"",null,34,null,"",null,null,null,34,null,"",null,34,null,""]
[null,35,null,"",null,35,null,"",null,null,null,35,null,"",null,35,null,""]
[null,36,null,"",null,36,null,"",null,null,null,36,null,"",null,36,null,""]
[null,37,null,"",null,37,null,"",null,null,null,37,null,"",null,37,null,""]
[null,38,null,"",null,38,null,"",null,null,null,38,null,"",null,38,null,""]
[null,39,null,"",null,39,null,"",null,null,null,39,null,"",null,39,null,""]
[null,40,null,"",null,40,null,"",null,null,null,40,null,"",null,40,null,""]
[null,"Eygu/Inngangir",{"$f":"SUM(C68:C107)","v":0},{"$f":"COUNT(D68:D107)","v":0},null,"Eygu/Inngangir",{"$f":"SUM(G68:G107)","v":0},{"$f":"COUNT(H68:H107)","v":0},null,null,null,"Eygu/Inngangir",{"$f":"SUM(M68:M107)","v":0},{"$f":"COUNT(N68:N107)","v":0},null,"Eygu/Inngangir",{"$f":"SUM(Q68:Q107)","v":0},{"$f":"COUNT(R68:R107)","v":0}]
[null,"Stig/Miðaltal",{"$f":"IF(D109>H109,2,IF(D109=H109,1,IF(D109<H109,0)))","v":1},{"$f":"IF(SUM(C68:C107)=0,\"\",SUM(C68:C107)/COUNT(C68:C107))","v":""},null,"Stig/Miðaltal",{"$f":"IF(H109>D109,2,IF(H109=D109,1,IF(H109<D109,0)))","v":1},{"$f":"IF(SUM(G68:G107)=0,\"\",SUM(G68:G107)/COUNT(G68:G107))","v":""},null,null,null,"Stig/Miðaltal",{"$f":"IF(N109>R109,2,IF(N109=R109,1,IF(N109<R109,0)))","v":1},{"$f":"IF(SUM(M68:M107)=0,\"\",SUM(M68:M107)/COUNT(M68:M107))","v":""},null,"Stig/Miðaltal",{"$f":"IF(R109>N109,2,IF(R109=N109,1,IF(R109<N109,0)))","v":1},{"$f":"IF(SUM(Q68:Q107)=0,\"\",SUM(Q68:Q107)/COUNT(Q68:Q107))","v":""}]
[null,"Størsta seria:",null,{"$f":"MAX(C68:C107)","v":0},null,"Størsta seria:",null,{"$f":"MAX(G68:G107)","v":0},null,null,null,"Størsta seria:",null,{"$f":"MAX(M68:M107)","v":0},null,"Størsta seria:",null,{"$f":"MAX(Q68:Q107)","v":0}]
[]
[]
[]
[]
[]
[]
[]
[]
[]
[]
[]
[]
[]
[]
[]
[]
[]
[]
[]
[]
[]
[]
[]
[]
[]
[]
[]
[]
[]
[]
[]
[]
[]
[]
[]
[]
[]
[]
[]
[]
[]
[]
[]
[]
[]
[]
[]
[]
[]
[]
[]
[]
[]
[]
[]
[]
[]
[]
[]
[null,"LIÐ","DEILD","SPÆLARAR","DÓMARAR"]
[null,"BFF1","1","Bakka"]
[null,"BFF1",1,"Spælarar","Allan Larsen"]
[null,"BFF2",2,"Allan Larsen","Árant Berjastein"]
[null,"BFF3",3,"Árant Berjastein","Arthur D. Poulsen"]
[null,"BFF4",null,"Arthur D. Poulsen","Bjarni Thomsen"]
[null,"BFF5",null,"Bjarni Thomsen","Carl Bech"]
[null,"BFF6",null,"Danial P. Joensen","Carsten Hansen"]
[null,"HABI1",null,"Dánjal Olsen","Danial P. Joensen"]
[null,"HABI2",null,"Eirikur Mørkøre","Dánjal Olsen"]
[null,"HABI3",null,"Evert Jacobsen","Eirikur Mørkøre"]
[null,"HABI4",null,"Eyðun Svalbard","Evert Jacobsen"]
[null,"HABI5",null,"Flemming Isaksen","Eyðun Svalbard"]
[null,"HABI6",null,"Fríðbjartur Reinert","Flemming Isaksen"]
[null,"KLBF1",null,"Gunnleif Danielsen","Fríðbjartur Reinert"]
[null,"KLBF2",null,"H.C. Hedegaard","Gundur Johansen"]
[null,"KLBF3",null,"Hákun Steingrimsson","Gunnleif Danielsen"]
[null,"KLBF4",null,"Hallur Joensen","H.C. Hedegaard"]
[null,"KLBF5",null,"Hans J. Kollsker","Hákun Steingrimsson"]
[null,"KLBF6",null,"Hans J. Nystrøm","Hallur Joensen"]
[null,"TVBF1",null,"Hanus Mortensen","Hans J. Kollsker"]
[null,"TVBF2",null,"Helgi Midjord","Hans J. Nystrøm"]
[null,"TVBF3",null,"Hermann Halgadal","Hans Olaf Hentze"]
[null,"TVBF4",null,"Høgni Højgaard","Hanus Mortensen"]
[null,"TVBF5",null,"Høgni Jøkladal","Helgi Midjord"]
[null,"TVBF6",null,"Hugin Albinus","Hermann Halgadal"]
[null,null,null,"Jákup A. Lambaa","Høgni Højgaard"]
[null,null,null,"Jákup Baldvinsson","Høgni Jøkladal"]
[null,null,null,"Jákup Gaard","Hugin Albinus"]
[null,null,null,"Jákup í Stórustovu","Jákup A. Lambaa"]
[null,null,null,"Jákup Nolsøe","Jákup Baldvinsson"]
[null,null,null,"Jákup O. Fløhamar","Jákup Gaard"]
[null,null,null,"Jamin I. Zhang","Jákup í Stórustovu"]
[null,null,null,"Jan Mohr","Jákup Nolsøe"]
[null,null,null,"Jan Müller","Jákup O. Fløhamar"]
[null,null,null,"Jarmund Michelsen","Jamin I. Zhang"]
[null,null,null,"Jens K. Feilberg","Jan Mohr"]
[null,null,null,"Jógvan Jørgensen","Jan Müller"]
[null,null,null,"Jógvan Kristiansen","Jarmund Michelsen"]
[null,null,null,"Kjartan Høgnesen","Jens K. Feilberg"]
[null,null,null,"Kjartan Niclasen","Jógvan Jørgensen"]
[null,null,null,"Kristian S Petersen","Jógvan Kristiansen"]
[null,null,null,"Kristian S. Høgnesen","Kjartan Høgnesen"]
[null,null,null,"Leif Lamhauge","Kjartan Niclasen"]
[null,null,null,"Martin Halgadal","Kristian S Petersen"]
[null,null,null,"Martin Hansen","Kristian S. Høgnesen"]
[null,null,null,"Max Rasmussen","Leif Lamhauge"]
[null,null,null,"Mortan Berjastein","Magni Jøkladal"]
[null,null,null,"Niclas Pearce","Martin Halgadal"]
[null,null,null,"Niels Nielsen","Martin Hansen"]
[null,null,null,"Niels Petersen","Max Rasmussen"]
[null,null,null,"Njál R. Petersen","Mortan Berjastein"]
[null,null,null,"Óskar Eiriksson","Niclas Pearce"]
[null,null,null,"Øssur Hentze","Niels Nielsen"]
[null,null,null,"Páll Heri Nolsøe","Niels Petersen"]
[null,null,null,"Petur J. Svøðstein","Njál R. Petersen"]
[null,null,null,"Petur Juleiv Svøðstein","Óskar Eiriksson"]
[null,null,null,"Poul A. Poulsen","Øssur Hentze"]
[null,null,null,"Poul Hansen","Páll Heri Nolsøe"]
[null,null,null,"Ragnar Joensen","Petur J. Svøðstein"]
[null,null,null,"Rani Hansen","Petur Juleiv Svøðstein"]
[null,null,null,"Rókur Dimon","Poul A. Poulsen"]
[null,null,null,"Rúni Jacobsen","Poul Hansen"]
[null,null,null,"Signar Højgaard","Ragnar Joensen"]
[null,null,null,"Sofus Baldvinsson","Rani Hansen"]
[null,null,null,"Sonhard Johannesen","Rói Einarsson"]
[null,null,null,"Steinbjørn í Dali","Rókur Dimon"]
[null,null,null,"Tóki Steingrimsson","Rúni Jacobsen"]
[null,null,null,"Tórður Holm","Signar Højgaard"]
[null,null,null,"Tóri Traðará","Sofus Baldvinsson"]
[null,null,null,"Tummas Eli Hansen","Sonhard Johannesen"]
[null,null,null,"Tummas Johannesen","Sonni Petersen"]
[null,null,null,"Urbanus Olsen","Steinbjørn í Dali"]
[null,null,null,"Zeljko Bogdanovic","Tóki Steingrimsson"]
[null,null,null,"Hans Olaf Hentze","Tórður Holm"]
[null,null,null,"Gundur Johansen","Tóri Traðará",null,"bakka"]
[null,null,null,"Carl Bech","Tummas Eli Hansen"]
[null,null,null,"Rói Einarsson","Tummas Johannesen"]
[null,null,null,"Magni Jøkladal","Urbanus Olsen"]
[null,null,null,null,"Zeljko Bogdanovic"]

{"sheet":"Úrslit","index":1,"n_rows":20,"n_cols":16,"rows_kept":20,"cut":false,"hidden":false,"merged":[[1,3,1,4],[1,8,1,11],[1,14,1,15],[3,4,3,5],[3,6,3,7],[3,8,3,9],[3,10,3,11],[4,1,5,1],[4,2,5,3],[8,14,9,14],[4,14,5,14],[6,1,7,1],[6,2,7,3],[8,1,9,1],[8,2,9,3],[4,15,5,15],[6,14,7,14],[6,15,7,15],[10,14,11,14],[10,15,11,15],[8,15,9,15],[10,1,11,1],[10,2,11,3],[15,8,15,9],[15,14,15,15],[13,3,13,5],[13,8,13,11],[14,8,14,9],[14,14,14,15],[18,3,18,4],[18,6,18,7],[18,9,18,10],[18,12,18,13],[19,3,19,4],[19,6,19,7],[19,9,19,10],[19,12,19,13]]}
[null,"Deild:",{"$f":"Innskriving!G5","v":1}]
[null,"Heimalið:",null,{"$f":"Innskriving!C4","v":0},null,null,"Vitjandi lið:",null,{"$f":"Innskriving!C5","v":0},null,null,null,null,"Dato:",{"$f":"Innskriving!G4","v":"00:00:00"}]
[]
[null,null,"Navn",null,1,null,2,null,3,null,4,null,null,"Tilsamans","Stig","Nr."]
[null,1,{"$f":"Innskriving!B9","v":0},null,null,null,null,null,{"$f":"IF(Innskriving!C59=\"\",0,Innskriving!C59)","v":0},{"$f":"Innskriving!H59","v":0},{"$f":"IF(Innskriving!C108=\"\",0,Innskriving!C108)","v":0},{"$f":"Innskriving!D108","v":0},null,{"$f":"I5+K5","v":0},{"$f":"J6+L6","v":0}]
[null,null,null,null,null,null,null,null,{"$f":"Innskriving!D61","v":0},{"$f":"IF(Innskriving!C19=\"\",0,Innskriving!C60)","v":0},{"$f":"Innskriving!D110","v":0},{"$f":"IF(Innskriving!C68=\"\",0,Innskriving!C109)","v":0},null,{"$f":"N5/(J5+L5)","v":{"$error":"#DIV/0!"}}]
[null,2,{"$f":"Innskriving!B10","v":0},null,null,null,null,null,{"$f":"IF(Innskriving!M108=\"\",0,Innskriving!M108)","v":0},{"$f":"Innskriving!N108","v":0},{"$f":"IF(Innskriving!M59=\"\",0,Innskriving!M59)","v":0},{"$f":"Innskriving!N59","v":0},null,{"$f":"I7+K7","v":0},{"$f":"J8+L8","v":0}]
[null,null,null,null,null,null,null,null,{"$f":"Innskriving!N110","v":0},{"$f":"IF(Innskriving!M68=\"\",0,Innskriving!M109)","v":0},{"$f":"Innskriving!N61","v":0},{"$f":"IF(Innskriving!M19=\"\",0,Innskriving!M60)","v":0},null,{"$f":"N7/(J7+L7)","v":{"$error":"#DIV/0!"}}]
[null,3,{"$f":"Innskriving!F9","v":0},null,{"$f":"IF(Innskriving!G59=\"\",0,Innskriving!G59)","v":0},{"$f":"Innskriving!H59","v":0},{"$f":"IF(Innskriving!Q108=\"\",0,Innskriving!Q108)","v":0},{"$f":"Innskriving!R108","v":0},null,null,null,null,null,{"$f":"E9+G9","v":0},{"$f":"F10+H10","v":0}]
[null,null,null,null,{"$f":"Innskriving!H61","v":0},{"$f":"IF(Innskriving!G19=\"\",0,Innskriving!G60)","v":0},{"$f":"Innskriving!R110","v":0},{"$f":"IF(Innskriving!Q68=\"\",0,Innskriving!Q109)","v":0},null,null,null,null,null,{"$f":"N9/(F9+H9)","v":{"$error":"#DIV/0!"}}]
[null,4,{"$f":"Innskriving!F10","v":0},null,{"$f":"IF(Innskriving!G108=\"\",0,Innskriving!G108)","v":0},{"$f":"Innskriving!H108","v":0},{"$f":"IF(Innskriving!Q59=\"\",0,Innskriving!Q59)","v":0},{"$f":"Innskriving!R59","v":0},null,null,null,null,null,{"$f":"E11+G11","v":0},{"$f":"F12+H12","v":0}]
[null,null,null,null,{"$f":"Innskriving!H110","v":0},{"$f":"IF(Innskriving!G68=\"\",0,Innskriving!G109)","v":0},{"$f":"Innskriving!R61","v":0},{"$f":"IF(Innskriving!Q19=\"\",0,Innskriving!Q60)","v":0},null,null,null,null,null,{"$f":"N11/(F11+H11)","v":{"$error":"#DIV/0!"}}]
[]
[null,"Heimalið:",null,{"$f":"D2","v":0},null,null,"Vitjandi lið:",null,{"$f":"I2","v":0},null,null,null,null,null,"Besta Umfarið"]
[null,"Eygu:",null,{"$f":"N5+N7","v":0},"Stig:",{"$f":"O5+O7","v":0},"Eygu:",null,{"$f":"N9+N11","v":0},null,"Stig:",{"$f":"O9+O11","v":0},null,"Navn:"]
[null,"Miðaltal:",null,{"$f":"(N6+N8)/2","v":{"$error":"#DIV/0!"}},null,null,"Miðaltal:",null,{"$f":"(N10+N12)/2","v":{"$error":"#DIV/0!"}},null,null,null,null,"Eygu:",{"$f":"MAX(I6,K6,K8,I8,G10,E10,E12,G12)","v":0}]
[]
[null,"Dómarar:"]
[null,null,"Dystur 1:",{"$f":"IF(Innskriving!J16=\"\",\"\",Innskriving!J16)","v":""},null,"Dystur 2:",{"$f":"IF(Innskriving!T16=\"\",\"\",Innskriving!T16)","v":""},null,"Dystur 3:",{"$f":"IF(Innskriving!J66=\"\",\"\",Innskriving!J66)","v":""},null,"Dystur 4:",{"$f":"IF(Innskriving!T66=\"\",\"\",Innskriving!T66)","v":""}]
[null,null,null,{"$f":"IF(Innskriving!J17=\"\",\"\",Innskriving!J17)","v":""},null,null,{"$f":"IF(Innskriving!T17=\"\",\"\",Innskriving!T17)","v":""},null,null,{"$f":"IF(Innskriving!J67=\"\",\"\",Innskriving!J67)","v":""},null,null,{"$f":"IF(Innskriving!T67=\"\",\"\",Innskriving!T67)","v":""}]

{"sheet":"Dómaraseðil","index":2,"n_rows":100,"n_cols":13,"rows_kept":100,"cut":false,"hidden":false,"merged":[[4,3,4,4],[4,5,4,6],[4,9,4,10],[4,11,4,12],[56,3,56,4],[56,5,56,6],[56,9,56,10],[56,11,56,12]]}
[]
[]
[null,null,"Dystur:",{"$f":"Innskriving!C4","v":0},{"$f":"Innskriving!C5","v":0},"Deild:",{"$f":"Innskriving!G5","v":1},null,"Dato:",{"$f":"Innskriving!G4","v":"00:00:00"}]
[]
[null,1,"Navn:",{"$f":"Innskriving!C17","v":0},null,{"$f":"Innskriving!G17","v":0},null,2,"Navn:",{"$f":"Innskriving!B10","v":0},null,{"$f":"Innskriving!Q17","v":0}]
[null,null,1,{"$f":"Innskriving!C19","v":0},{"$f":"Innskriving!D19","v":""},{"$f":"Innskriving!G19","v":0},{"$f":"Innskriving!H19","v":""},null,1,{"$f":"Innskriving!M19","v":0},{"$f":"Innskriving!N19","v":""},{"$f":"Innskriving!Q19","v":0},{"$f":"Innskriving!R19","v":""}]
[null,null,2,{"$f":"Innskriving!C20","v":0},{"$f":"Innskriving!D20","v":""},{"$f":"Innskriving!G20","v":0},{"$f":"Innskriving!H20","v":""},null,2,{"$f":"Innskriving!M20","v":0},{"$f":"Innskriving!N20","v":""},{"$f":"Innskriving!Q20","v":0},{"$f":"Innskriving!R20","v":""}]
[null,null,3,{"$f":"Innskriving!C21","v":0},{"$f":"Innskriving!D21","v":""},{"$f":"Innskriving!G21","v":0},{"$f":"Innskriving!H21","v":""},null,3,{"$f":"Innskriving!M21","v":0},{"$f":"Innskriving!N21","v":""},{"$f":"Innskriving!Q21","v":0},{"$f":"Innskriving!R21","v":""}]
[null,null,4,{"$f":"Innskriving!C22","v":0},{"$f":"Innskriving!D22","v":""},{"$f":"Innskriving!G22","v":0},{"$f":"Innskriving!H22","v":""},null,4,{"$f":"Innskriving!M22","v":0},{"$f":"Innskriving!N22","v":""},{"$f":"Innskriving!Q22","v":0},{"$f":"Innskriving!R22","v":""}]
[null,null,5,{"$f":"Innskriving!C23","v":0},{"$f":"Innskriving!D23","v":""},{"$f":"Innskriving!G23","v":0},{"$f":"Innskriving!H23","v":""},null,5,{"$f":"Innskriving!M23","v":0},{"$f":"Innskriving!N23","v":""},{"$f":"Innskriving!Q23","v":0},{"$f":"Innskriving!R23","v":""}]
[null,null,6,{"$f":"Innskriving!C24","v":0},{"$f":"Innskriving!D24","v":""},{"$f":"Innskriving!G24","v":0},{"$f":"Innskriving!H24","v":""},null,6,{"$f":"Innskriving!M24","v":0},{"$f":"Innskriving!N24","v":""},{"$f":"Innskriving!Q24","v":0},{"$f":"Innskriving!R24","v":""}]
[null,null,7,{"$f":"Innskriving!C25","v":0},{"$f":"Innskriving!D25","v":""},{"$f":"Innskriving!G25","v":0},{"$f":"Innskriving!H25","v":""},null,7,{"$f":"Innskriving!M25","v":0},{"$f":"Innskriving!N25","v":""},{"$f":"Innskriving!Q25","v":0},{"$f":"Innskriving!R25","v":""}]
[null,null,8,{"$f":"Innskriving!C26","v":0},{"$f":"Innskriving!D26","v":""},{"$f":"Innskriving!G26","v":0},{"$f":"Innskriving!H26","v":""},null,8,{"$f":"Innskriving!M26","v":0},{"$f":"Innskriving!N26","v":""},{"$f":"Innskriving!Q26","v":0},{"$f":"Innskriving!R26","v":""}]
[null,null,9,{"$f":"Innskriving!C27","v":0},{"$f":"Innskriving!D27","v":""},{"$f":"Innskriving!G27","v":0},{"$f":"Innskriving!H27","v":""},null,9,{"$f":"Innskriving!M27","v":0},{"$f":"Innskriving!N27","v":""},{"$f":"Innskriving!Q27","v":0},{"$f":"Innskriving!R27","v":""}]
[null,null,10,{"$f":"Innskriving!C28","v":0},{"$f":"Innskriving!D28","v":""},{"$f":"Innskriving!G28","v":0},{"$f":"Innskriving!H28","v":""},null,10,{"$f":"Innskriving!M28","v":0},{"$f":"Innskriving!N28","v":""},{"$f":"Innskriving!Q28","v":0},{"$f":"Innskriving!R28","v":""}]
[null,null,11,{"$f":"Innskriving!C29","v":0},{"$f":"Innskriving!D29","v":""},{"$f":"Innskriving!G29","v":0},{"$f":"Innskriving!H29","v":""},null,11,{"$f":"Innskriving!M29","v":0},{"$f":"Innskriving!N29","v":""},{"$f":"Innskriving!Q29","v":0},{"$f":"Innskriving!R29","v":""}]
[null,null,12,{"$f":"Innskriving!C30","v":0},{"$f":"Innskriving!D30","v":""},{"$f":"Innskriving!G30","v":0},{"$f":"Innskriving!H30","v":""},null,12,{"$f":"Innskriving!M30","v":0},{"$f":"Innskriving!N30","v":""},{"$f":"Innskriving!Q30","v":0},{"$f":"Innskriving!R30","v":""}]
[null,null,13,{"$f":"Innskriving!C31","v":0},{"$f":"Innskriving!D31","v":""},{"$f":"Innskriving!G31","v":0},{"$f":"Innskriving!H31","v":""},null,13,{"$f":"Innskriving!M31","v":0},{"$f":"Innskriving!N31","v":""},{"$f":"Innskriving!Q31","v":0},{"$f":"Innskriving!R31","v":""}]
[null,null,14,{"$f":"Innskriving!C32","v":0},{"$f":"Innskriving!D32","v":""},{"$f":"Innskriving!G32","v":0},{"$f":"Innskriving!H32","v":""},null,14,{"$f":"Innskriving!M32","v":0},{"$f":"Innskriving!N32","v":""},{"$f":"Innskriving!Q32","v":0},{"$f":"Innskriving!R32","v":""}]
[null,null,15,{"$f":"Innskriving!C33","v":0},{"$f":"Innskriving!D33","v":""},{"$f":"Innskriving!G33","v":0},{"$f":"Innskriving!H33","v":""},null,15,{"$f":"Innskriving!M33","v":0},{"$f":"Innskriving!N33","v":""},{"$f":"Innskriving!Q33","v":0},{"$f":"Innskriving!R33","v":""}]
[null,null,16,{"$f":"Innskriving!C34","v":0},{"$f":"Innskriving!D34","v":""},{"$f":"Innskriving!G35","v":0},{"$f":"Innskriving!H35","v":""},null,16,{"$f":"Innskriving!M34","v":0},{"$f":"Innskriving!N34","v":""},{"$f":"Innskriving!Q34","v":0},{"$f":"Innskriving!R34","v":""}]
[null,null,17,{"$f":"Innskriving!C35","v":0},{"$f":"Innskriving!D35","v":""},{"$f":"Innskriving!G36","v":0},{"$f":"Innskriving!H36","v":""},null,17,{"$f":"Innskriving!M35","v":0},{"$f":"Innskriving!N35","v":""},{"$f":"Innskriving!Q35","v":0},{"$f":"Innskriving!R35","v":""}]
[null,null,18,{"$f":"Innskriving!C36","v":0},{"$f":"Innskriving!D36","v":""},{"$f":"Innskriving!G37","v":0},{"$f":"Innskriving!H37","v":""},null,18,{"$f":"Innskriving!M36","v":0},{"$f":"Innskriving!N36","v":""},{"$f":"Innskriving!Q36","v":0},{"$f":"Innskriving!R36","v":""}]
[null,null,19,{"$f":"Innskriving!C37","v":0},{"$f":"Innskriving!D37","v":""},{"$f":"Innskriving!G38","v":0},{"$f":"Innskriving!H38","v":""},null,19,{"$f":"Innskriving!M37","v":0},{"$f":"Innskriving!N37","v":""},{"$f":"Innskriving!Q37","v":0},{"$f":"Innskriving!R37","v":""}]
[null,null,20,{"$f":"Innskriving!C38","v":0},{"$f":"Innskriving!D38","v":""},{"$f":"Innskriving!G39","v":0},{"$f":"Innskriving!H39","v":""},null,20,{"$f":"Innskriving!M38","v":0},{"$f":"Innskriving!N38","v":""},{"$f":"Innskriving!Q38","v":0},{"$f":"Innskriving!R38","v":""}]
[null,null,21,{"$f":"Innskriving!C39","v":0},null,{"$f":"Innskriving!G40","v":0},null,null,21,{"$f":"Innskriving!M39","v":0},{"$f":"Innskriving!N39","v":""},{"$f":"Innskriving!Q39","v":0},{"$f":"Innskriving!R39","v":""}]
[null,null,22,{"$f":"Innskriving!C40","v":0},null,{"$f":"Innskriving!G41","v":0},null,null,22,{"$f":"Innskriving!M40","v":0},{"$f":"Innskriving!N40","v":""},{"$f":"Innskriving!Q40","v":0},{"$f":"Innskriving!R40","v":""}]
[null,null,23,{"$f":"Innskriving!C41","v":0},null,{"$f":"Innskriving!G42","v":0},null,null,23,{"$f":"Innskriving!M41","v":0},{"$f":"Innskriving!N41","v":""},{"$f":"Innskriving!Q41","v":0},{"$f":"Innskriving!R41","v":""}]
[null,null,24,{"$f":"Innskriving!C42","v":0},null,{"$f":"Innskriving!G43","v":0},null,null,24,{"$f":"Innskriving!M42","v":0},{"$f":"Innskriving!N42","v":""},{"$f":"Innskriving!Q42","v":0},{"$f":"Innskriving!R42","v":""}]
[null,null,25,{"$f":"Innskriving!C43","v":0},null,{"$f":"Innskriving!G44","v":0},null,null,25,{"$f":"Innskriving!M43","v":0},{"$f":"Innskriving!N43","v":""},{"$f":"Innskriving!Q43","v":0},{"$f":"Innskriving!R43","v":""}]
[null,null,26,{"$f":"Innskriving!C44","v":0},null,{"$f":"Innskriving!G45","v":0},null,null,26,{"$f":"Innskriving!M44","v":0},{"$f":"Innskriving!N44","v":""},{"$f":"Innskriving!Q44","v":0},{"$f":"Innskriving!R44","v":""}]
[null,null,27,{"$f":"Innskriving!C45","v":0},null,{"$f":"Innskriving!G46","v":0},null,null,27,{"$f":"Innskriving!M45","v":0},{"$f":"Innskriving!N45","v":""},{"$f":"Innskriving!Q45","v":0},{"$f":"Innskriving!R45","v":""}]
[null,null,28,{"$f":"Innskriving!C46","v":0},null,{"$f":"Innskriving!G47","v":0},null,null,28,{"$f":"Innskriving!M46","v":0},{"$f":"Innskriving!N46","v":""},{"$f":"Innskriving!Q46","v":0},{"$f":"Innskriving!R46","v":""}]
[null,null,29,{"$f":"Innskriving!C47","v":0},null,{"$f":"Innskriving!G48","v":0},null,null,29,{"$f":"Innskriving!M47","v":0},{"$f":"Innskriving!N47","v":""},{"$f":"Innskriving!Q47","v":0},{"$f":"Innskriving!R47","v":""}]
[null,null,30,{"$f":"Innskriving!C48","v":0},null,{"$f":"Innskriving!G49","v":0},null,null,30,{"$f":"Innskriving!M48","v":0},{"$f":"Innskriving!N48","v":""},{"$f":"Innskriving!Q48","v":0},{"$f":"Innskriving!R48","v":""}]
[null,null,31,{"$f":"Innskriving!C49","v":0},null,{"$f":"Innskriving!G50","v":0},null,null,31,{"$f":"Innskriving!M49","v":0},{"$f":"Innskriving!N49","v":""},{"$f":"Innskriving!Q49","v":0},{"$f":"Innskriving!R49","v":""}]
[null,null,32,{"$f":"Innskriving!C50","v":0},null,{"$f":"Innskriving!G51","v":0},null,null,32,{"$f":"Innskriving!M50","v":0},{"$f":"Innskriving!N50","v":""},{"$f":"Innskriving!Q50","v":0},{"$f":"Innskriving!R50","v":""}]
[null,null,33,{"$f":"Innskriving!C51","v":0},null,{"$f":"Innskriving!G52","v":0},null,null,33,{"$f":"Innskriving!M51","v":0},{"$f":"Innskriving!N51","v":""},{"$f":"Innskriving!Q51","v":0},{"$f":"Innskriving!R51","v":""}]
[null,null,34,{"$f":"Innskriving!C52","v":0},null,{"$f":"Innskriving!G53","v":0},null,null,34,{"$f":"Innskriving!M52","v":0},{"$f":"Innskriving!N52","v":""},{"$f":"Innskriving!Q52","v":0},{"$f":"Innskriving!R52","v":""}]
[null,null,35,{"$f":"Innskriving!C53","v":0},null,{"$f":"Innskriving!G54","v":0},null,null,35,{"$f":"Innskriving!M53","v":0},{"$f":"Innskriving!N53","v":""},{"$f":"Innskriving!Q53","v":0},{"$f":"Innskriving!R53","v":""}]
[null,null,36,{"$f":"Innskriving!C54","v":0},null,{"$f":"Innskriving!G55","v":0},null,null,36,{"$f":"Innskriving!M54","v":0},{"$f":"Innskriving!N54","v":""},{"$f":"Innskriving!Q54","v":0},{"$f":"Innskriving!R54","v":""}]
[null,null,37,{"$f":"Innskriving!C55","v":0},null,{"$f":"Innskriving!G56","v":0},null,null,37,{"$f":"Innskriving!M55","v":0},{"$f":"Innskriving!N55","v":""},{"$f":"Innskriving!Q55","v":0},{"$f":"Innskriving!R55","v":""}]
[null,null,38,{"$f":"Innskriving!C56","v":0},null,{"$f":"Innskriving!G57","v":0},null,null,38,{"$f":"Innskriving!M56","v":0},{"$f":"Innskriving!N56","v":""},{"$f":"Innskriving!Q56","v":0},{"$f":"Innskriving!R56","v":""}]
[null,null,39,{"$f":"Innskriving!C57","v":0},null,{"$f":"Innskriving!G58","v":0},null,null,39,{"$f":"Innskriving!M57","v":0},{"$f":"Innskriving!N57","v":""},{"$f":"Innskriving!Q57","v":0},{"$f":"Innskriving!R57","v":""}]
[null,null,40,{"$f":"Innskriving!C58","v":0},null,{"$f":"Innskriving!G59","v":0},null,null,40,{"$f":"Innskriving!M58","v":0},{"$f":"Innskriving!N58","v":""},{"$f":"Innskriving!Q58","v":0},{"$f":"Innskriving!R58","v":""}]
[]
[null,null,"Dómari 1:",{"$f":"Innskriving!J16","v":0},null,null,null,null,"Dómari 1:",{"$f":"Innskriving!T16","v":0}]
[null,null,"Dómari 2:",{"$f":"Innskriving!J17","v":0},null,null,null,null,"Dómari 2:",{"$f":"Innskriving!T17","v":0}]
[]
[]
[]
[]
[]
[]
[null,null,"Dystur:",{"$f":"D3","v":0},{"$f":"E3","v":0},"Deild:",{"$f":"G3","v":1},null,"Dato:",{"$f":"J3","v":"00:00:00"}]
[]
[null,3,"Navn:",{"$f":"Innskriving!C67","v":0},null,{"$f":"Innskriving!G67","v":0},null,4,"Navn:",{"$f":"Innskriving!M67","v":0},null,{"$f":"Innskriving!Q67","v":0}]
[null,null,1,{"$f":"Innskriving!C68","v":0},{"$f":"Innskriving!D68","v":""},{"$f":"Innskriving!G68","v":0},{"$f":"Innskriving!H68","v":""},null,1,{"$f":"Innskriving!M68","v":0},{"$f":"Innskriving!N68","v":""},{"$f":"Innskriving!Q68","v":0},{"$f":"Innskriving!R68","v":""}]
[null,null,2,{"$f":"Innskriving!C69","v":0},{"$f":"Innskriving!D69","v":""},{"$f":"Innskriving!G69","v":0},{"$f":"Innskriving!H69","v":""},null,2,{"$f":"Innskriving!M69","v":0},{"$f":"Innskriving!N69","v":""},{"$f":"Innskriving!Q69","v":0},{"$f":"Innskriving!R69","v":""}]
[null,null,3,{"$f":"Innskriving!C70","v":0},{"$f":"Innskriving!D70","v":""},{"$f":"Innskriving!G70","v":0},{"$f":"Innskriving!H70","v":""},null,3,{"$f":"Innskriving!M70","v":0},{"$f":"Innskriving!N70","v":""},{"$f":"Innskriving!Q70","v":0},{"$f":"Innskriving!R70","v":""}]
[null,null,4,{"$f":"Innskriving!C71","v":0},{"$f":"Innskriving!D71","v":""},{"$f":"Innskriving!G71","v":0},{"$f":"Innskriving!H71","v":""},null,4,{"$f":"Innskriving!M71","v":0},{"$f":"Innskriving!N71","v":""},{"$f":"Innskriving!Q71","v":0},{"$f":"Innskriving!R71","v":""}]
[null,null,5,{"$f":"Innskriving!C72","v":0},{"$f":"Innskriving!D72","v":""},{"$f":"Innskriving!G72","v":0},{"$f":"Innskriving!H72","v":""},null,5,{"$f":"Innskriving!M72","v":0},{"$f":"Innskriving!N72","v":""},{"$f":"Innskriving!Q72","v":0},{"$f":"Innskriving!R72","v":""}]
[null,null,6,{"$f":"Innskriving!C73","v":0},{"$f":"Innskriving!D73","v":""},{"$f":"Innskriving!G73","v":0},{"$f":"Innskriving!H73","v":""},null,6,{"$f":"Innskriving!M73","v":0},{"$f":"Innskriving!N73","v":""},{"$f":"Innskriving!Q73","v":0},{"$f":"Innskriving!R73","v":""}]
[null,null,7,{"$f":"Innskriving!C74","v":0},{"$f":"Innskriving!D74","v":""},{"$f":"Innskriving!G74","v":0},{"$f":"Innskriving!H74","v":""},null,7,{"$f":"Innskriving!M74","v":0},{"$f":"Innskriving!N74","v":""},{"$f":"Innskriving!Q74","v":0},{"$f":"Innskriving!R74","v":""}]
[null,null,8,{"$f":"Innskriving!C75","v":0},{"$f":"Innskriving!D75","v":""},{"$f":"Innskriving!G75","v":0},{"$f":"Innskriving!H75","v":""},null,8,{"$f":"Innskriving!M75","v":0},{"$f":"Innskriving!N75","v":""},{"$f":"Innskriving!Q75","v":0},{"$f":"Innskriving!R75","v":""}]
[null,null,9,{"$f":"Innskriving!C76","v":0},{"$f":"Innskriving!D76","v":""},{"$f":"Innskriving!G76","v":0},{"$f":"Innskriving!H76","v":""},null,9,{"$f":"Innskriving!M76","v":0},{"$f":"Innskriving!N76","v":""},{"$f":"Innskriving!Q76","v":0},{"$f":"Innskriving!R76","v":""}]
[null,null,10,{"$f":"Innskriving!C77","v":0},{"$f":"Innskriving!D77","v":""},{"$f":"Innskriving!G77","v":0},{"$f":"Innskriving!H77","v":""},null,10,{"$f":"Innskriving!M77","v":0},{"$f":"Innskriving!N77","v":""},{"$f":"Innskriving!Q77","v":0},{"$f":"Innskriving!R77","v":""}]
[null,null,11,{"$f":"Innskriving!C78","v":0},{"$f":"Innskriving!D78","v":""},{"$f":"Innskriving!G78","v":0},{"$f":"Innskriving!H78","v":""},null,11,{"$f":"Innskriving!M78","v":0},{"$f":"Innskriving!N78","v":""},{"$f":"Innskriving!Q78","v":0},{"$f":"Innskriving!R78","v":""}]
[null,null,12,{"$f":"Innskriving!C79","v":0},{"$f":"Innskriving!D79","v":""},{"$f":"Innskriving!G79","v":0},{"$f":"Innskriving!H79","v":""},null,12,{"$f":"Innskriving!M79","v":0},{"$f":"Innskriving!N79","v":""},{"$f":"Innskriving!Q79","v":0},{"$f":"Innskriving!R79","v":""}]
[null,null,13,{"$f":"Innskriving!C80","v":0},{"$f":"Innskriving!D80","v":""},{"$f":"Innskriving!G80","v":0},{"$f":"Innskriving!H80","v":""},null,13,{"$f":"Innskriving!M80","v":0},{"$f":"Innskriving!N80","v":""},{"$f":"Innskriving!Q80","v":0},{"$f":"Innskriving!R80","v":""}]
[null,null,14,{"$f":"Innskriving!C81","v":0},{"$f":"Innskriving!D81","v":""},{"$f":"Innskriving!G81","v":0},{"$f":"Innskriving!H81","v":""},null,14,{"$f":"Innskriving!M81","v":0},{"$f":"Innskriving!N81","v":""},{"$f":"Innskriving!Q81","v":0},{"$f":"Innskriving!R81","v":""}]
[null,null,15,{"$f":"Innskriving!C82","v":0},{"$f":"Innskriving!D82","v":""},{"$f":"Innskriving!G82","v":0},{"$f":"Innskriving!H82","v":""},null,15,{"$f":"Innskriving!M82","v":0},{"$f":"Innskriving!N82","v":""},{"$f":"Innskriving!Q82","v":0},{"$f":"Innskriving!R82","v":""}]
[null,null,16,{"$f":"Innskriving!C83","v":0},{"$f":"Innskriving!D83","v":""},{"$f":"Innskriving!G83","v":0},{"$f":"Innskriving!H83","v":""},null,16,{"$f":"Innskriving!M83","v":0},{"$f":"Innskriving!N83","v":""},{"$f":"Innskriving!Q83","v":0},{"$f":"Innskriving!R83","v":""}]
[null,null,17,{"$f":"Innskriving!C84","v":0},{"$f":"Innskriving!D84","v":""},{"$f":"Innskriving!G84","v":0},{"$f":"Innskriving!H84","v":""},null,17,{"$f":"Innskriving!M84","v":0},{"$f":"Innskriving!N84","v":""},{"$f":"Innskriving!Q84","v":0},{"$f":"Innskriving!R84","v":""}]
[null,null,18,{"$f":"Innskriving!C85","v":0},{"$f":"Innskriving!D85","v":""},{"$f":"Innskriving!G85","v":0},{"$f":"Innskriving!H85","v":""},null,18,{"$f":"Innskriving!M85","v":0},{"$f":"Innskriving!N85","v":""},{"$f":"Innskriving!Q85","v":0},{"$f":"Innskriving!R85","v":""}]
[null,null,19,{"$f":"Innskriving!C86","v":0},{"$f":"Innskriving!D86","v":""},{"$f":"Innskriving!G86","v":0},{"$f":"Innskriving!H86","v":""},null,19,{"$f":"Innskriving!M86","v":0},{"$f":"Innskriving!N86","v":""},{"$f":"Innskriving!Q86","v":0},{"$f":"Innskriving!R86","v":""}]
[null,null,20,{"$f":"Innskriving!C87","v":0},{"$f":"Innskriving!D87","v":""},{"$f":"Innskriving!G87","v":0},{"$f":"Innskriving!H87","v":""},null,20,{"$f":"Innskriving!M87","v":0},{"$f":"Innskriving!N87","v":""},{"$f":"Innskriving!Q87","v":0},{"$f":"Innskriving!R87","v":""}]
[null,null,21,{"$f":"Innskriving!C88","v":0},{"$f":"Innskriving!D88","v":""},{"$f":"Innskriving!G88","v":0},{"$f":"Innskriving!H88","v":""},null,21,{"$f":"Innskriving!M88","v":0},{"$f":"Innskriving!N88","v":""},{"$f":"Innskriving!Q88","v":0},{"$f":"Innskriving!R88","v":""}]
[null,null,22,{"$f":"Innskriving!C89","v":0},{"$f":"Innskriving!D89","v":""},{"$f":"Innskriving!G89","v":0},{"$f":"Innskriving!H89","v":""},null,22,{"$f":"Innskriving!M89","v":0},{"$f":"Innskriving!N89","v":""},{"$f":"Innskriving!Q89","v":0},{"$f":"Innskriving!R89","v":""}]
[null,null,23,{"$f":"Innskriving!C90","v":0},{"$f":"Innskriving!D90","v":""},{"$f":"Innskriving!G90","v":0},{"$f":"Innskriving!H90","v":""},null,23,{"$f":"Innskriving!M90","v":0},{"$f":"Innskriving!N90","v":""},{"$f":"Innskriving!Q90","v":0},{"$f":"Innskriving!R90","v":""}]
[null,null,24,{"$f":"Innskriving!C91","v":0},{"$f":"Innskriving!D91","v":""},{"$f":"Innskriving!G91","v":0},{"$f":"Innskriving!H91","v":""},null,24,{"$f":"Innskriving!M91","v":0},{"$f":"Innskriving!N91","v":""},{"$f":"Innskriving!Q91","v":0},{"$f":"Innskriving!R91","v":""}]
[null,null,25,{"$f":"Innskriving!C92","v":0},{"$f":"Innskriving!D92","v":""},{"$f":"Innskriving!G92","v":0},{"$f":"Innskriving!H92","v":""},null,25,{"$f":"Innskriving!M92","v":0},{"$f":"Innskriving!N92","v":""},{"$f":"Innskriving!Q92","v":0},{"$f":"Innskriving!R92","v":""}]
[null,null,26,{"$f":"Innskriving!C93","v":0},{"$f":"Innskriving!D93","v":""},{"$f":"Innskriving!G93","v":0},{"$f":"Innskriving!H93","v":""},null,26,{"$f":"Innskriving!M93","v":0},{"$f":"Innskriving!N93","v":""},{"$f":"Innskriving!Q93","v":0},{"$f":"Innskriving!R93","v":""}]
[null,null,27,{"$f":"Innskriving!C94","v":0},{"$f":"Innskriving!D94","v":""},{"$f":"Innskriving!G94","v":0},{"$f":"Innskriving!H94","v":""},null,27,{"$f":"Innskriving!M94","v":0},{"$f":"Innskriving!N94","v":""},{"$f":"Innskriving!Q94","v":0},{"$f":"Innskriving!R94","v":""}]
[null,null,28,{"$f":"Innskriving!C95","v":0},{"$f":"Innskriving!D95","v":""},{"$f":"Innskriving!G95","v":0},{"$f":"Innskriving!H95","v":""},null,28,{"$f":"Innskriving!M95","v":0},{"$f":"Innskriving!N95","v":""},{"$f":"Innskriving!Q95","v":0},{"$f":"Innskriving!R95","v":""}]
[null,null,29,{"$f":"Innskriving!C96","v":0},{"$f":"Innskriving!D96","v":""},{"$f":"Innskriving!G96","v":0},{"$f":"Innskriving!H96","v":""},null,29,{"$f":"Innskriving!M96","v":0},{"$f":"Innskriving!N96","v":""},{"$f":"Innskriving!Q96","v":0},{"$f":"Innskriving!R96","v":""}]
[null,null,30,{"$f":"Innskriving!C97","v":0},{"$f":"Innskriving!D97","v":""},{"$f":"Innskriving!G97","v":0},{"$f":"Innskriving!H97","v":""},null,30,{"$f":"Innskriving!M97","v":0},{"$f":"Innskriving!N97","v":""},{"$f":"Innskriving!Q97","v":0},{"$f":"Innskriving!R97","v":""}]
[null,null,31,{"$f":"Innskriving!C98","v":0},{"$f":"Innskriving!D98","v":""},{"$f":"Innskriving!G98","v":0},{"$f":"Innskriving!H98","v":""},null,31,{"$f":"Innskriving!M98","v":0},{"$f":"Innskriving!N98","v":""},{"$f":"Innskriving!Q98","v":0},{"$f":"Innskriving!R98","v":""}]
[null,null,32,{"$f":"Innskriving!C99","v":0},{"$f":"Innskriving!D99","v":""},{"$f":"Innskriving!G99","v":0},{"$f":"Innskriving!H99","v":""},null,32,{"$f":"Innskriving!M99","v":0},{"$f":"Innskriving!N99","v":""},{"$f":"Innskriving!Q99","v":0},{"$f":"Innskriving!R99","v":""}]
[null,null,33,{"$f":"Innskriving!C100","v":0},{"$f":"Innskriving!D100","v":""},{"$f":"Innskriving!G100","v":0},{"$f":"Innskriving!H100","v":""},null,33,{"$f":"Innskriving!M100","v":0},{"$f":"Innskriving!N100","v":""},{"$f":"Innskriving!Q100","v":0},{"$f":"Innskriving!R100","v":""}]
[null,null,34,{"$f":"Innskriving!C101","v":0},{"$f":"Innskriving!D101","v":""},{"$f":"Innskriving!G101","v":0},{"$f":"Innskriving!H101","v":""},null,34,{"$f":"Innskriving!M101","v":0},{"$f":"Innskriving!N101","v":""},{"$f":"Innskriving!Q101","v":0},{"$f":"Innskriving!R101","v":""}]
[null,null,35,{"$f":"Innskriving!C102","v":0},{"$f":"Innskriving!D102","v":""},{"$f":"Innskriving!G102","v":0},{"$f":"Innskriving!H102","v":""},null,35,{"$f":"Innskriving!M102","v":0},{"$f":"Innskriving!N102","v":""},{"$f":"Innskriving!Q102","v":0},{"$f":"Innskriving!R102","v":""}]
[null,null,36,{"$f":"Innskriving!C103","v":0},{"$f":"Innskriving!D103","v":""},{"$f":"Innskriving!G103","v":0},{"$f":"Innskriving!H103","v":""},null,36,{"$f":"Innskriving!M103","v":0},{"$f":"Innskriving!N103","v":""},{"$f":"Innskriving!Q103","v":0},{"$f":"Innskriving!R103","v":""}]
[null,null,37,{"$f":"Innskriving!C104","v":0},{"$f":"Innskriving!D104","v":""},{"$f":"Innskriving!G104","v":0},{"$f":"Innskriving!H104","v":""},null,37,{"$f":"Innskriving!M104","v":0},{"$f":"Innskriving!N104","v":""},{"$f":"Innskriving!Q104","v":0},{"$f":"Innskriving!R104","v":""}]
[null,null,38,{"$f":"Innskriving!C105","v":0},{"$f":"Innskriving!D105","v":""},{"$f":"Innskriving!G105","v":0},{"$f":"Innskriving!H105","v":""},null,38,{"$f":"Innskriving!M105","v":0},{"$f":"Innskriving!N105","v":""},{"$f":"Innskriving!Q105","v":0},{"$f":"Innskriving!R105","v":""}]
[null,null,39,{"$f":"Innskriving!C106","v":0},{"$f":"Innskriving!D106","v":""},{"$f":"Innskriving!G106","v":0},{"$f":"Innskriving!H106","v":""},null,39,{"$f":"Innskriving!M106","v":0},{"$f":"Innskriving!N106","v":""},{"$f":"Innskriving!Q106","v":0},{"$f":"Innskriving!R106","v":""}]
[null,null,40,{"$f":"Innskriving!C107","v":0},{"$f":"Innskriving!D107","v":""},{"$f":"Innskriving!G107","v":0},{"$f":"Innskriving!H107","v":""},null,40,{"$f":"Innskriving!M107","v":0},{"$f":"Innskriving!N107","v":""},{"$f":"Innskriving!Q107","v":0},{"$f":"Innskriving!R107","v":""}]
[]
[null,null,"Dómari 1:",{"$f":"Innskriving!J66","v":0},null,null,null,null,"Dómari 1:",{"$f":"Innskriving!T66","v":0}]
[null,null,"Dómari 2:",{"$f":"Innskriving!J67","v":0},null,null,null,null,"Dómari 2:",{"$f":"Innskriving!T67","v":0}]

{"sheet":"Lið-spælarar-dómarar-deildir","index":3,"n_rows":81,"n_cols":5,"rows_kept":81,"cut":false,"hidden":false,"merged":[]}
[]
[null,"LIÐ","DEILD","SPÆLARAR","DÓMARAR"]
[null,"BFF1","1","Bakka"]
[null,"BFF1",2,"Spælarar","Allan Larsen"]
[null,"BFF2",3,"Allan Larsen","Árant Berjastein"]
[null,"BFF3",null,"Árant Berjastein","Arthur D. Poulsen"]
[null,"BFF4",null,"Arthur D. Poulsen","Bjarni Thomsen"]
[null,"BFF5",null,"Bjarni Thomsen","Carl Bech"]
[null,"BFF6",null,"Danial P. Joensen","Carsten Hansen"]
[null,"HABI1",null,"Dánjal Olsen","Danial P. Joensen"]
[null,"HABI2",null,"Eirikur Mørkøre","Dánjal Olsen"]
[null,"HABI3",null,"Evert Jacobsen","Eirikur Mørkøre"]
[null,"HABI4",null,"Eyðun Svalbard","Evert Jacobsen"]
[null,"HABI5",null,"Flemming Isaksen","Eyðun Svalbard"]
[null,"HABI6",null,"Fríðbjartur Reinert","Flemming Isaksen"]
[null,"KLBF1",null,"Gunnleif Danielsen","Fríðbjartur Reinert"]
[null,"KLBF2",null,"H.C. Hedegaard","Gundur Johansen"]
[null,"KLBF3",null,"Hákun Steingrimsson","Gunnleif Danielsen"]
[null,"KLBF4",null,"Hallur Joensen","H.C. Hedegaard"]
[null,"KLBF5",null,"Hans J. Kollsker","Hákun Steingrimsson"]
[null,"KLBF6",null,"Hans J. Nystrøm","Hallur Joensen"]
[null,"TVBF1",null,"Hanus Mortensen","Hans J. Kollsker"]
[null,"TVBF2",null,"Helgi Midjord","Hans J. Nystrøm"]
[null,"TVBF3",null,"Hermann Halgadal","Hans Olaf Hentze"]
[null,"TVBF4",null,"Høgni Højgaard","Hanus Mortensen"]
[null,"TVBF5",null,"Høgni Jøkladal","Helgi Midjord"]
[null,"TVBF6",null,"Hugin Albinus","Hermann Halgadal"]
[null,null,null,"Jákup A. Lambaa","Høgni Højgaard"]
[null,null,null,"Jákup Baldvinsson","Høgni Jøkladal"]
[null,null,null,"Jákup Gaard","Hugin Albinus"]
[null,null,null,"Jákup í Stórustovu","Jákup A. Lambaa"]
[null,null,null,"Jákup Nolsøe","Jákup Baldvinsson"]
[null,null,null,"Jákup O. Fløhamar","Jákup Gaard"]
[null,null,null,"Jamin I. Zhang","Jákup í Stórustovu"]
[null,null,null,"Jan Mohr","Jákup Nolsøe"]
[null,null,null,"Jan Müller","Jákup O. Fløhamar"]
[null,null,null,"Jarmund Michelsen","Jamin I. Zhang"]
[null,null,null,"Jens K. Feilberg","Jan Mohr"]
[null,null,null,"Jógvan Jørgensen","Jan Müller"]
[null,null,null,"Jógvan Kristiansen","Jarmund Michelsen"]
[null,null,null,"Kjartan Høgnesen","Jens K. Feilberg"]
[null,null,null,"Kjartan Niclasen","Jógvan Jørgensen"]
[null,null,null,"Kristian S Petersen","Jógvan Kristiansen"]
[null,null,null,"Kristian S. Høgnesen","Kjartan Høgnesen"]
[null,null,null,"Leif Lamhauge","Kjartan Niclasen"]
[null,null,null,"Martin Halgadal","Kristian S Petersen"]
[null,null,null,"Martin Hansen","Kristian S. Høgnesen"]
[null,null,null,"Max Rasmussen","Leif Lamhauge"]
[null,null,null,"Mortan Berjastein","Magni Jøkladal"]
[null,null,null,"Niclas Pearce","Martin Halgadal"]
[null,null,null,"Niels Nielsen","Martin Hansen"]
[null,null,null,"Niels Petersen","Max Rasmussen"]
[null,null,null,"Njál R. Petersen","Mortan Berjastein"]
[null,null,null,"Óskar Eiriksson","Niclas Pearce"]
[null,null,null,"Øssur Hentze","Niels Nielsen"]
[null,null,null,"Páll Heri Nolsøe","Niels Petersen"]
[null,null,null,"Petur J. Svøðstein","Njál R. Petersen"]
[null,null,null,"Petur Juleiv Svøðstein","Óskar Eiriksson"]
[null,null,null,"Poul A. Poulsen","Øssur Hentze"]
[null,null,null,"Poul Hansen","Páll Heri Nolsøe"]
[null,null,null,"Ragnar Joensen","Petur J. Svøðstein"]
[null,null,null,"Rani Hansen","Petur Juleiv Svøðstein"]
[null,null,null,"Rókur Dimon","Poul A. Poulsen"]
[null,null,null,"Rúni Jacobsen","Poul Hansen"]
[null,null,null,"Signar Højgaard","Ragnar Joensen"]
[null,null,null,"Sofus Baldvinsson","Rani Hansen"]
[null,null,null,"Sonhard Johannesen","Rói Einarsson"]
[null,null,null,"Steinbjørn í Dali","Rókur Dimon"]
[null,null,null,"Tóki Steingrimsson","Rúni Jacobsen"]
[null,null,null,"Tórður Holm","Signar Højgaard"]
[null,null,null,"Tóri Traðará","Sofus Baldvinsson"]
[null,null,null,"Tummas Eli Hansen","Sonhard Johannesen"]
[null,null,null,"Tummas Johannesen","Sonni Petersen"]
[null,null,null,"Urbanus Olsen","Steinbjørn í Dali"]
[null,null,null,"Zeljko Bogdanovic","Tóki Steingrimsson"]
[null,null,null,"Hans Olaf Hentze","Tórður Holm"]
[null,null,null,"Gundur Johansen","Tóri Traðará"]
[null,null,null,"Carl Bech","Tummas Eli Hansen"]
[null,null,null,"Rói Einarsson","Tummas Johannesen"]
[null,null,null,"Magni Jøkladal","Urbanus Olsen"]
[null,null,null,null,"Zeljko Bogdanovic"]